[Event "Late-Titled-Tuesday-Blitz-October-03-2023"]
[Site "Chess.com"]
[Date "2023.10.03"]
[Round "8"]
[White "Dhaydon19"]
[Black "Mikedannnn"]
[Result "0-1"]
[WhiteElo "2729"]
[BlackElo "2569"]
[TimeControl "180+1"]
[EndTime "15:25:02 PDT"]
[Termination "Mikedannnn won by resignation"]

1. d4 {[%clk 0:03:00.3]} 1... c5 {[%clk 0:02:58.7]} 2. d5 {[%clk 0:02:59.1]}
2... g6 {[%clk 0:02:59]} 3. e4 {[%clk 0:02:57.9]} 3... Bg7 {[%clk 0:02:58.7]} 4.
Nf3 {[%clk 0:02:58.1]} 4... d6 {[%clk 0:02:58.3]} 5. h3 {[%clk 0:02:57]} 5...
Nf6 {[%clk 0:02:58.4]} 6. Bd2 {[%clk 0:02:55.2]} 6... Nxe4 {[%clk 0:02:52.7]} 7.
Bc1 {[%clk 0:02:53.8]} 7... O-O {[%clk 0:02:49.6]} 8. Be2 {[%clk 0:02:48.2]}
8... e6 {[%clk 0:02:43.4]} 9. dxe6 {[%clk 0:02:46]} 9... Bxe6 {[%clk 0:02:39.4]}
10. O-O {[%clk 0:02:46]} 10... d5 {[%clk 0:02:35.9]} 11. c3 {[%clk 0:02:45.2]}
11... Nc6 {[%clk 0:02:34.6]} 12. Re1 {[%clk 0:02:42.3]} 12... Re8 {[%clk
0:02:25.1]} 13. Na3 {[%clk 0:02:39]} 13... a6 {[%clk 0:02:23.8]} 14. Nc2 {[%clk
0:02:37.9]} 14... b5 {[%clk 0:02:21.3]} 15. Be3 {[%clk 0:02:37.3]} 15... Rb8
{[%clk 0:02:15.6]} 16. a3 {[%clk 0:02:34.4]} 16... a5 {[%clk 0:02:04.7]} 17. Bd3
{[%clk 0:02:32.2]} 17... b4 {[%clk 0:02:02.1]} 18. axb4 {[%clk 0:02:31.3]} 18...
axb4 {[%clk 0:02:02.4]} 19. Ra6 {[%clk 0:02:09.9]} 19... Qc8 {[%clk 0:01:53.6]}
20. cxb4 {[%clk 0:02:06.6]} 20... Nxb4 {[%clk 0:01:31.3]} 21. Nxb4 {[%clk
0:02:03.3]} 21... Rxb4 {[%clk 0:01:32.2]} 22. Ra7 {[%clk 0:01:43.7]} 22... Rxb2
{[%clk 0:01:27.7]} 23. Bxe4 {[%clk 0:01:40.7]} 23... dxe4 {[%clk 0:01:26.7]} 24.
Ng5 {[%clk 0:01:41.1]} 24... Bb3 {[%clk 0:01:22.4]} 25. Qd6 {[%clk 0:01:30.4]}
25... h6 {[%clk 0:01:20.8]} 26. Bc1 {[%clk 0:01:19.7]} 26... hxg5 {[%clk
0:00:47.8]} 27. Bxb2 {[%clk 0:01:17.7]} 27... Bxb2 {[%clk 0:00:48.7]} 28. Rc7
{[%clk 0:01:12.2]} 28... Qb8 {[%clk 0:00:32.8]} 29. Qxc5 {[%clk 0:01:08.8]}
29... Bd4 {[%clk 0:00:32.6]} 30. Qc6 {[%clk 0:01:04.2]} 30... Kg7 {[%clk
0:00:23.7]} 31. Rb1 {[%clk 0:00:58.4]} 31... e3 {[%clk 0:00:24.1]} 32. fxe3
{[%clk 0:00:54.5]} 32... Rxe3 {[%clk 0:00:24.1]} 33. Kh1 {[%clk 0:00:53.8]}
33... Qb4 {[%clk 0:00:20.6]} 34. Rf1 {[%clk 0:00:27.9]} 34... Re1 {[%clk
0:00:17.6]} 35. Qf3 {[%clk 0:00:25.6]} 35... Rxf1+ {[%clk 0:00:13.2]} 36. Qxf1
{[%clk 0:00:24.4]} 36... Be5 {[%clk 0:00:09.7]} 37. Rc1 {[%clk 0:00:19.6]} 37...
Bd5 {[%clk 0:00:09.2]} 38. Rd1 {[%clk 0:00:18.8]} 38... Qb3 {[%clk 0:00:07.6]}
39. Rd3 {[%clk 0:00:17.4]} 39... Qc4 {[%clk 0:00:07.4]} 40. Qe2 {[%clk
0:00:17.5]} 40... Qf4 {[%clk 0:00:07.3]} 41. Kg1 {[%clk 0:00:14.8]} 41... Qh2+
{[%clk 0:00:07.6]} 42. Kf1 {[%clk 0:00:14.5]} 42... Bg3 {[%clk 0:00:07]} 43.
Rxg3 {[%clk 0:00:10.4]} 43... Qxg3 {[%clk 0:00:07]} 44. Qb2+ {[%clk 0:00:10.3]}
44... Kh7 {[%clk 0:00:06.7]} 45. Qe5 {[%clk 0:00:09.9]} 45... Qxe5 {[%clk
0:00:06.3]} 0-1

[Event "Late-Titled-Tuesday-Blitz-October-03-2023"]
[Site "Chess.com"]
[Date "2023.10.03"]
[Round "8"]
[White "FaustinoOro"]
[Black "Bilan_Danila"]
[Result "0-1"]
[WhiteElo "2838"]
[BlackElo "2551"]
[TimeControl "180+1"]
[EndTime "15:25:03 PDT"]
[Termination "Bilan_Danila won on time"]

1. Nf3 {[%clk 0:03:00.9]} 1... d5 {[%clk 0:03:00.1]} 2. e3 {[%clk 0:03:00.8]}
2... Nf6 {[%clk 0:03:00.5]} 3. b3 {[%clk 0:03:00.9]} 3... c5 {[%clk 0:03:01.1]}
4. Bb2 {[%clk 0:03:01.2]} 4... Nc6 {[%clk 0:03:02]} 5. Bb5 {[%clk 0:03:01]} 5...
Qb6 {[%clk 0:03:02.7]} 6. a4 {[%clk 0:02:55.4]} 6... a6 {[%clk 0:03:02.7]} 7.
Bxc6+ {[%clk 0:02:52]} 7... Qxc6 {[%clk 0:03:02.6]} 8. O-O {[%clk 0:02:52.7]}
8... g6 {[%clk 0:02:53.8]} 9. Ne5 {[%clk 0:02:48.6]} 9... Qc7 {[%clk 0:02:42.5]}
10. d4 {[%clk 0:02:45.3]} 10... Bg7 {[%clk 0:02:41.9]} 11. Nd2 {[%clk
0:02:43.5]} 11... O-O {[%clk 0:02:40.7]} 12. h3 {[%clk 0:02:34.4]} 12... Bf5
{[%clk 0:02:38.7]} 13. c4 {[%clk 0:02:25.2]} 13... Rfd8 {[%clk 0:02:32.7]} 14.
Rc1 {[%clk 0:02:23.9]} 14... cxd4 {[%clk 0:02:29.6]} 15. Bxd4 {[%clk 0:02:22]}
15... dxc4 {[%clk 0:02:26.4]} 16. Ndxc4 {[%clk 0:02:15]} 16... Rac8 {[%clk
0:02:00.9]} 17. Qe2 {[%clk 0:01:45]} 17... Nd5 {[%clk 0:01:34]} 18. Qb2 {[%clk
0:01:37.9]} 18... Qb8 {[%clk 0:01:27]} 19. Rfd1 {[%clk 0:01:25.6]} 19... Nb4
{[%clk 0:01:14.6]} 20. Bc3 {[%clk 0:01:13]} 20... Nd5 {[%clk 0:01:07.8]} 21. Bd4
{[%clk 0:01:13.2]} 21... Nb4 {[%clk 0:01:07.9]} 22. Nb6 {[%clk 0:01:01.3]} 22...
Rxc1 {[%clk 0:00:58.7]} 23. Rxc1 {[%clk 0:00:58.6]} 23... f6 {[%clk 0:00:58.7]}
24. Bc3 {[%clk 0:00:51.7]} 24... Nd5 {[%clk 0:00:37.5]} 25. Nxd5 {[%clk
0:00:51]} 25... Rxd5 {[%clk 0:00:38.4]} 26. Nf3 {[%clk 0:00:48.4]} 26... Be4
{[%clk 0:00:36.8]} 27. Nd2 {[%clk 0:00:45]} 27... Bd3 {[%clk 0:00:35.5]} 28. Bb4
{[%clk 0:00:38.4]} 28... Qd8 {[%clk 0:00:33.7]} 29. Qc3 {[%clk 0:00:36.3]} 29...
Kf7 {[%clk 0:00:31.1]} 30. a5 {[%clk 0:00:36.3]} 30... Bb5 {[%clk 0:00:24]} 31.
e4 {[%clk 0:00:26.8]} 31... Rd3 {[%clk 0:00:21.6]} 32. Qc2 {[%clk 0:00:27.2]}
32... e6 {[%clk 0:00:17.4]} 33. Nf1 {[%clk 0:00:21.9]} 33... f5 {[%clk
0:00:17.2]} 34. exf5 {[%clk 0:00:21.6]} 34... gxf5 {[%clk 0:00:18.1]} 35. Bc5
{[%clk 0:00:20.9]} 35... Qd5 {[%clk 0:00:14]} 36. Bb4 {[%clk 0:00:18.4]} 36...
Bc6 {[%clk 0:00:13.5]} 37. Ne3 {[%clk 0:00:14.9]} 37... Qxb3 {[%clk 0:00:13.7]}
38. Qc5 {[%clk 0:00:13.9]} 38... Bh6 {[%clk 0:00:08.4]} 39. Qe7+ {[%clk
0:00:13.7]} 39... Kg6 {[%clk 0:00:08.7]} 40. Bc5 {[%clk 0:00:12.6]} 40... Bxe3
{[%clk 0:00:06.8]} 41. fxe3 {[%clk 0:00:13.2]} 41... Rxe3 {[%clk 0:00:07.3]} 42.
Qf8 {[%clk 0:00:10]} 42... Rg3 {[%clk 0:00:06.3]} 43. Qg8+ {[%clk 0:00:09.9]}
43... Kf6 {[%clk 0:00:02.2]} 0-1

[Event "Late-Titled-Tuesday-Blitz-October-03-2023"]
[Site "Chess.com"]
[Date "2023.10.03"]
[Round "8"]
[White "rdarruda"]
[Black "Mesa_1"]
[Result "1-0"]
[WhiteElo "2487"]
[BlackElo "2599"]
[TimeControl "180+1"]
[EndTime "15:25:04 PDT"]
[Termination "rdarruda won by resignation"]

1. Nf3 {[%clk 0:02:36.3]} 1... Nf6 {[%clk 0:02:58.7]} 2. d4 {[%clk 0:02:36.4]}
2... g6 {[%clk 0:02:59.6]} 3. Nc3 {[%clk 0:02:36]} 3... Bg7 {[%clk 0:03:00.2]}
4. e4 {[%clk 0:02:36.2]} 4... d6 {[%clk 0:02:59.9]} 5. Bg5 {[%clk 0:02:35.2]}
5... O-O {[%clk 0:02:56.7]} 6. Qd2 {[%clk 0:02:35.3]} 6... a6 {[%clk 0:02:54.9]}
7. O-O-O {[%clk 0:02:34.6]} 7... Nc6 {[%clk 0:02:50.3]} 8. Bh6 {[%clk
0:02:33.7]} 8... Bg4 {[%clk 0:02:49.2]} 9. Bxg7 {[%clk 0:02:32.7]} 9... Kxg7
{[%clk 0:02:50.1]} 10. Be2 {[%clk 0:02:32.9]} 10... Bxf3 {[%clk 0:02:39.9]} 11.
Bxf3 {[%clk 0:02:32.4]} 11... e5 {[%clk 0:02:40.7]} 12. dxe5 {[%clk 0:02:32.1]}
12... dxe5 {[%clk 0:02:38]} 13. Qe3 {[%clk 0:02:31.5]} 13... Nd4 {[%clk
0:02:34.7]} 14. Ne2 {[%clk 0:02:30.4]} 14... c5 {[%clk 0:02:07]} 15. c3 {[%clk
0:02:27.4]} 15... Qc7 {[%clk 0:02:07.4]} 16. Kb1 {[%clk 0:02:24.8]} 16... Nxf3
{[%clk 0:01:58.8]} 17. Qxf3 {[%clk 0:02:25.7]} 17... c4 {[%clk 0:01:55.3]} 18.
Rd2 {[%clk 0:02:16.9]} 18... Rfd8 {[%clk 0:01:55.1]} 19. Rhd1 {[%clk 0:02:16.8]}
19... Rxd2 {[%clk 0:01:54.1]} 20. Rxd2 {[%clk 0:02:17.7]} 20... Qc6 {[%clk
0:01:54.4]} 21. Ng3 {[%clk 0:02:16.1]} 21... h5 {[%clk 0:01:55]} 22. h4 {[%clk
0:02:15.3]} 22... b5 {[%clk 0:01:47.6]} 23. Qe3 {[%clk 0:02:14.6]} 23... Kh7
{[%clk 0:01:30.8]} 24. f3 {[%clk 0:02:12.4]} 24... a5 {[%clk 0:01:22.8]} 25. Qg5
{[%clk 0:01:54.3]} 25... Re8 {[%clk 0:01:20.5]} 26. a3 {[%clk 0:01:38.3]} 26...
b4 {[%clk 0:01:19.9]} 27. axb4 {[%clk 0:01:36.5]} 27... axb4 {[%clk 0:01:20.8]}
28. cxb4 {[%clk 0:01:36.2]} 28... Qa6 {[%clk 0:01:08.3]} 29. Ne2 {[%clk
0:01:30.7]} 29... Qb6 {[%clk 0:00:41.6]} 30. Nc3 {[%clk 0:01:29.8]} 30... Re6
{[%clk 0:00:36.8]} 31. b5 {[%clk 0:01:28.1]} 31... Qg1+ {[%clk 0:00:30.4]} 32.
Kc2 {[%clk 0:01:27.6]} 32... Qc5 {[%clk 0:00:31.3]} 33. Rd1 {[%clk 0:01:20.3]}
33... Qb4 {[%clk 0:00:30.2]} 34. Rd8 {[%clk 0:01:07.9]} 34... Qe7 {[%clk
0:00:19.7]} 35. Ra8 {[%clk 0:00:50.4]} 35... Qb7 {[%clk 0:00:19.1]} 36. Ra6
{[%clk 0:00:48.8]} 36... Rxa6 {[%clk 0:00:17]} 37. bxa6 {[%clk 0:00:49.7]} 37...
Qxa6 {[%clk 0:00:15.8]} 38. Qxe5 {[%clk 0:00:49.9]} 38... Ng8 {[%clk 0:00:15]}
39. Qd5 {[%clk 0:00:47.9]} 39... Kg7 {[%clk 0:00:13.6]} 40. Qe5+ {[%clk
0:00:44.8]} 40... Kh7 {[%clk 0:00:13.7]} 41. Qe8 {[%clk 0:00:42.1]} 41... Kg7
{[%clk 0:00:13]} 42. Qb5 {[%clk 0:00:42.6]} 42... Qe6 {[%clk 0:00:12.2]} 43. Qd5
{[%clk 0:00:40.5]} 43... Qf6 {[%clk 0:00:11.5]} 44. Qg5 {[%clk 0:00:36.7]} 44...
Qc6 {[%clk 0:00:09.9]} 45. Nd5 {[%clk 0:00:36.5]} 45... Qa4+ {[%clk 0:00:10]}
46. Kb1 {[%clk 0:00:34.2]} 46... Qd1+ {[%clk 0:00:09.8]} 47. Qc1 {[%clk
0:00:34.9]} 47... Qd3+ {[%clk 0:00:07.5]} 48. Qc2 {[%clk 0:00:35.4]} 48... Qf1+
{[%clk 0:00:07.7]} 49. Ka2 {[%clk 0:00:35.4]} 49... Qh1 {[%clk 0:00:04.8]} 50.
Ne3 {[%clk 0:00:30.2]} 50... Qxh4 {[%clk 0:00:02.3]} 51. Qxc4 {[%clk 0:00:29.4]}
51... Qg3 {[%clk 0:00:01.6]} 52. Qc3+ {[%clk 0:00:28.8]} 52... Kh7 {[%clk
0:00:01.6]} 53. b4 {[%clk 0:00:29.3]} 53... h4 {[%clk 0:00:02.2]} 54. Ng4 {[%clk
0:00:25.2]} 54... h3 {[%clk 0:00:02.2]} 55. gxh3 {[%clk 0:00:25.4]} 55... Qxf3
{[%clk 0:00:02.1]} 56. Qxf3 {[%clk 0:00:24.2]} 1-0

[Event "Late-Titled-Tuesday-Blitz-October-03-2023"]
[Site "Chess.com"]
[Date "2023.10.03"]
[Round "8"]
[White "miraitrunks"]
[Black "WPWPWP-2015"]
[Result "0-1"]
[WhiteElo "2223"]
[BlackElo "2519"]
[TimeControl "180+1"]
[EndTime "15:25:06 PDT"]
[Termination "WPWPWP-2015 won by checkmate"]

1. e4 {[%clk 0:01:57.4]} 1... c5 {[%clk 0:02:59.4]} 2. Nf3 {[%clk 0:01:57.1]}
2... d6 {[%clk 0:02:59.7]} 3. Bc4 {[%clk 0:01:56.1]} 3... e6 {[%clk 0:02:58.9]}
4. O-O {[%clk 0:01:55.5]} 4... Nf6 {[%clk 0:02:58.8]} 5. Qe2 {[%clk 0:01:55.1]}
5... Be7 {[%clk 0:02:58.5]} 6. c3 {[%clk 0:01:55.1]} 6... O-O {[%clk 0:02:56.9]}
7. d4 {[%clk 0:01:55.8]} 7... d5 {[%clk 0:02:56]} 8. exd5 {[%clk 0:01:53.3]}
8... Nxd5 {[%clk 0:02:53.8]} 9. dxc5 {[%clk 0:01:44.9]} 9... Bxc5 {[%clk
0:02:51.8]} 10. Nbd2 {[%clk 0:01:42.3]} 10... Nc6 {[%clk 0:02:50.8]} 11. Ne4
{[%clk 0:01:42.3]} 11... Be7 {[%clk 0:02:50.7]} 12. Bd2 {[%clk 0:01:40.1]} 12...
b6 {[%clk 0:02:47.6]} 13. Rad1 {[%clk 0:01:38.7]} 13... Bb7 {[%clk 0:02:47.5]}
14. Bg5 {[%clk 0:01:36.4]} 14... Bxg5 {[%clk 0:02:41.5]} 15. Nfxg5 {[%clk
0:01:33.5]} 15... h6 {[%clk 0:02:39.2]} 16. Bxd5 {[%clk 0:01:33.1]} 16... exd5
{[%clk 0:02:36.2]} 17. Qh5 {[%clk 0:00:45]} 17... Ne5 {[%clk 0:02:17.7]} 18. Ne6
{[%clk 0:00:27.6]} 18... fxe6 {[%clk 0:01:48.7]} 19. Qxe5 {[%clk 0:00:27]} 19...
Qe7 {[%clk 0:01:44.9]} 20. Nd6 {[%clk 0:00:22.2]} 20... Ba6 {[%clk 0:01:30.8]}
21. Rfe1 {[%clk 0:00:22.4]} 21... Rf6 {[%clk 0:01:30]} 22. Rxd5 {[%clk 0:00:18]}
22... Raf8 {[%clk 0:01:25.1]} 23. Ne4 {[%clk 0:00:08.1]} 23... Rf5 {[%clk
0:01:14]} 24. Qd6 {[%clk 0:00:08.4]} 24... Qe8 {[%clk 0:00:55.4]} 25. Rxf5
{[%clk 0:00:08.5]} 25... Rxf5 {[%clk 0:00:49.7]} 26. f3 {[%clk 0:00:08.9]} 26...
Qg6 {[%clk 0:00:40.7]} 27. Ng3 {[%clk 0:00:09.4]} 27... Rf6 {[%clk 0:00:40.1]}
28. Qd8+ {[%clk 0:00:09.4]} 28... Kh7 {[%clk 0:00:39.4]} 29. Qc7 {[%clk
0:00:10.1]} 29... h5 {[%clk 0:00:29.3]} 30. Qe5 {[%clk 0:00:08.3]} 30... h4
{[%clk 0:00:18.1]} 31. Ne4 {[%clk 0:00:08.7]} 31... Rf5 {[%clk 0:00:17.7]} 32.
Qd6 {[%clk 0:00:07.9]} 32... h3 {[%clk 0:00:17.3]} 33. g3 {[%clk 0:00:08.2]}
33... Rxf3 {[%clk 0:00:16.7]} 34. Qe5 {[%clk 0:00:07.8]} 34... Rf5 {[%clk
0:00:16.6]} 35. Qc7 {[%clk 0:00:07.8]} 35... Bd3 {[%clk 0:00:15.7]} 36. Nf2
{[%clk 0:00:08]} 36... Bb5 {[%clk 0:00:14.4]} 37. Nxh3 {[%clk 0:00:08.7]} 37...
e5 {[%clk 0:00:09.3]} 38. Rxe5 {[%clk 0:00:08.4]} 38... Rf1+ {[%clk 0:00:09.3]}
39. Kg2 {[%clk 0:00:08.8]} 39... Qc2+ {[%clk 0:00:08.1]} 40. Nf2 {[%clk
0:00:05.6]} 40... Rxf2+ {[%clk 0:00:08.5]} 41. Kh3 {[%clk 0:00:06.3]} 41...
Rxh2+ {[%clk 0:00:08]} 42. Kg4 {[%clk 0:00:06.7]} 42... Qg6+ {[%clk 0:00:07.3]}
43. Rg5 {[%clk 0:00:06.2]} 43... Qe4+ {[%clk 0:00:06.2]} 44. Qf4 {[%clk
0:00:05.1]} 44... Be2# {[%clk 0:00:06.1]} 0-1

[Event "Late-Titled-Tuesday-Blitz-October-03-2023"]
[Site "Chess.com"]
[Date "2023.10.03"]
[Round "8"]
[White "Vegan4future"]
[Black "Joshukid"]
[Result "0-1"]
[WhiteElo "2401"]
[BlackElo "2558"]
[TimeControl "180+1"]
[EndTime "15:25:09 PDT"]
[Termination "Joshukid won by resignation"]

1. d4 {[%clk 0:02:59.6]} 1... Nf6 {[%clk 0:02:58.3]} 2. Nc3 {[%clk 0:02:59.9]}
2... c6 {[%clk 0:02:51.8]} 3. Bf4 {[%clk 0:02:59]} 3... d5 {[%clk 0:02:52]} 4.
e3 {[%clk 0:02:58.8]} 4... h6 {[%clk 0:02:50.5]} 5. h4 {[%clk 0:02:54.2]} 5...
Bf5 {[%clk 0:02:50.9]} 6. f3 {[%clk 0:02:52.3]} 6... e6 {[%clk 0:02:49.8]} 7. g4
{[%clk 0:02:52.3]} 7... Bg6 {[%clk 0:02:49.8]} 8. Bd3 {[%clk 0:02:51.4]} 8...
Bxd3 {[%clk 0:02:50.1]} 9. Qxd3 {[%clk 0:02:50.5]} 9... Bd6 {[%clk 0:02:51]} 10.
Nge2 {[%clk 0:02:49.7]} 10... Qc7 {[%clk 0:02:51]} 11. O-O-O {[%clk 0:02:47.8]}
11... Nbd7 {[%clk 0:02:51.4]} 12. g5 {[%clk 0:02:45.8]} 12... Nh5 {[%clk
0:02:51.6]} 13. Bxd6 {[%clk 0:02:45.2]} 13... Qxd6 {[%clk 0:02:52.5]} 14. f4
{[%clk 0:02:45.5]} 14... hxg5 {[%clk 0:02:52.5]} 15. hxg5 {[%clk 0:02:45.1]}
15... O-O-O {[%clk 0:02:53]} 16. Rh3 {[%clk 0:02:26.8]} 16... g6 {[%clk
0:02:51.5]} 17. Rdh1 {[%clk 0:02:25.1]} 17... Rhf8 {[%clk 0:02:52.2]} 18. Ng3
{[%clk 0:02:24.5]} 18... Nxg3 {[%clk 0:02:51.5]} 19. Rxg3 {[%clk 0:02:25.4]}
19... a6 {[%clk 0:02:51.5]} 20. Rgh3 {[%clk 0:02:25.6]} 20... c5 {[%clk
0:02:51.8]} 21. Ne2 {[%clk 0:02:20]} 21... cxd4 {[%clk 0:02:48.3]} 22. exd4
{[%clk 0:02:06.8]} 22... Nb8 {[%clk 0:02:44.3]} 23. c3 {[%clk 0:01:56.7]} 23...
Nc6 {[%clk 0:02:44.3]} 24. Kb1 {[%clk 0:01:56.4]} 24... Ne7 {[%clk 0:02:44.4]}
25. Rh7 {[%clk 0:01:39.5]} 25... Nf5 {[%clk 0:02:43.6]} 26. a4 {[%clk
0:01:35.5]} 26... Kb8 {[%clk 0:02:38.2]} 27. Rf1 {[%clk 0:01:31.7]} 27... Qb6
{[%clk 0:02:34.4]} 28. Ka2 {[%clk 0:01:29.3]} 28... a5 {[%clk 0:02:32.6]} 29.
Qb5 {[%clk 0:01:25.2]} 29... Qxb5 {[%clk 0:02:32.7]} 30. axb5 {[%clk 0:01:26.1]}
30... Ka7 {[%clk 0:02:29.8]} 31. Kb3 {[%clk 0:01:15.1]} 31... Kb6 {[%clk
0:02:24.9]} 32. Ka4 {[%clk 0:01:15.1]} 32... Ne3 {[%clk 0:02:23.6]} 33. Rf3
{[%clk 0:01:12]} 33... Nc4 {[%clk 0:02:23.9]} 34. b3 {[%clk 0:01:09.2]} 34...
Nd6 {[%clk 0:02:23.8]} 35. c4 {[%clk 0:00:59.9]} 35... dxc4 {[%clk 0:02:23.6]}
36. bxc4 {[%clk 0:01:00.5]} 36... Nxc4 {[%clk 0:02:24.2]} 37. Rc3 {[%clk
0:01:00.3]} 37... Nd6 {[%clk 0:02:17.8]} 38. Rc5 {[%clk 0:00:57.5]} 38... Rc8
{[%clk 0:02:17.2]} 39. Nc3 {[%clk 0:00:53.5]} 39... Rxc5 {[%clk 0:01:58.2]} 40.
dxc5+ {[%clk 0:00:54.4]} 40... Kxc5 {[%clk 0:01:59.1]} 41. Rh1 {[%clk
0:00:52.8]} 41... Kd4 {[%clk 0:01:57.7]} 42. Rd1+ {[%clk 0:00:50.7]} 42... Kc5
{[%clk 0:01:57.4]} 43. Ne2 {[%clk 0:00:41.5]} 43... Nf5 {[%clk 0:01:42.3]} 44.
Rc1+ {[%clk 0:00:30.5]} 44... Kb6 {[%clk 0:01:42]} 45. Rd1 {[%clk 0:00:21.9]}
45... Rc8 {[%clk 0:01:41.3]} 46. Rd7 {[%clk 0:00:21.1]} 46... Rc4+ {[%clk
0:01:36.5]} 47. Kb3 {[%clk 0:00:21.2]} 47... Rb4+ {[%clk 0:01:37]} 48. Kc3
{[%clk 0:00:21.2]} 48... Re4 {[%clk 0:01:29.7]} 49. Kd3 {[%clk 0:00:20.6]} 49...
Re3+ {[%clk 0:01:23.3]} 50. Kd2 {[%clk 0:00:20.9]} 50... Rb3 {[%clk 0:01:23.5]}
51. Rxf7 {[%clk 0:00:21.3]} 51... Kxb5 {[%clk 0:01:22.2]} 52. Rf6 {[%clk
0:00:22.2]} 52... a4 {[%clk 0:01:22.9]} 53. Nc1 {[%clk 0:00:20.8]} 53... Rb4
{[%clk 0:01:18.3]} 54. Rxe6 {[%clk 0:00:20.4]} 54... Rxf4 {[%clk 0:01:18.9]} 55.
Rxg6 {[%clk 0:00:20.3]} 55... Rg4 {[%clk 0:01:17.6]} 56. Rg8 {[%clk 0:00:19.1]}
56... a3 {[%clk 0:01:18]} 57. Kc2 {[%clk 0:00:18.6]} 57... Nd4+ {[%clk
0:01:16.1]} 58. Kc3 {[%clk 0:00:18.5]} 58... Nf3 {[%clk 0:00:57.7]} 59. g6
{[%clk 0:00:18.5]} 59... Rc4+ {[%clk 0:00:58.4]} 60. Kb3 {[%clk 0:00:17.3]}
60... Rxc1 {[%clk 0:00:58.8]} 61. Kxa3 {[%clk 0:00:18.2]} 61... Rg1 {[%clk
0:00:58.5]} 62. g7 {[%clk 0:00:19.1]} 62... Ne5 {[%clk 0:00:51.9]} 63. Kb3
{[%clk 0:00:14]} 63... Nd7 {[%clk 0:00:50.7]} 64. Kc3 {[%clk 0:00:10.3]} 64...
Nc5 {[%clk 0:00:51.1]} 65. Kd4 {[%clk 0:00:06.6]} 65... Rxg7 {[%clk 0:00:51.3]}
66. Rb8 {[%clk 0:00:02.7]} 66... Na6 {[%clk 0:00:50.5]} 67. Ke5 {[%clk
0:00:03.2]} 67... Nxb8 {[%clk 0:00:50.4]} 0-1

[Event "Late-Titled-Tuesday-Blitz-October-03-2023"]
[Site "Chess.com"]
[Date "2023.10.03"]
[Round "8"]
[White "Kosak12"]
[Black "dropstoneDP"]
[Result "1-0"]
[WhiteElo "2821"]
[BlackElo "3050"]
[TimeControl "180+1"]
[EndTime "15:25:12 PDT"]
[Termination "Kosak12 won on time"]

1. e4 {[%clk 0:03:00.9]} 1... e5 {[%clk 0:02:59.8]} 2. Nf3 {[%clk 0:03:00.6]}
2... Nf6 {[%clk 0:03:00.4]} 3. Nxe5 {[%clk 0:02:57.2]} 3... d6 {[%clk
0:03:00.7]} 4. Nf3 {[%clk 0:02:57.5]} 4... Nxe4 {[%clk 0:03:00.9]} 5. Nc3 {[%clk
0:02:56.5]} 5... Nxc3 {[%clk 0:03:00.9]} 6. dxc3 {[%clk 0:02:57.1]} 6... Be7
{[%clk 0:03:01.8]} 7. Be3 {[%clk 0:02:57.6]} 7... O-O {[%clk 0:03:02.7]} 8. Qd2
{[%clk 0:02:58]} 8... Nd7 {[%clk 0:03:03.6]} 9. O-O-O {[%clk 0:02:58.6]} 9... c6
{[%clk 0:03:00.8]} 10. h4 {[%clk 0:02:57.3]} 10... d5 {[%clk 0:03:00.5]} 11. Bd3
{[%clk 0:02:56.3]} 11... Nf6 {[%clk 0:02:59.1]} 12. h5 {[%clk 0:02:54.3]} 12...
Bg4 {[%clk 0:02:57.4]} 13. h6 {[%clk 0:02:53.1]} 13... g6 {[%clk 0:02:57.9]} 14.
Bf4 {[%clk 0:02:33.9]} 14... Bc5 {[%clk 0:02:47.3]} 15. Rde1 {[%clk 0:02:32.5]}
15... Ne4 {[%clk 0:02:37.6]} 16. Bxe4 {[%clk 0:02:21.6]} 16... dxe4 {[%clk
0:02:38.5]} 17. Qxd8 {[%clk 0:02:21.9]} 17... Raxd8 {[%clk 0:02:37.2]} 18. Rxe4
{[%clk 0:02:22.6]} 18... Rfe8 {[%clk 0:02:29.2]} 19. Rhe1 {[%clk 0:02:15.4]}
19... Rxe4 {[%clk 0:02:26.5]} 20. Rxe4 {[%clk 0:02:16.3]} 20... f5 {[%clk
0:02:14.2]} 21. Re2 {[%clk 0:02:12.7]} 21... Bxf3 {[%clk 0:02:11]} 22. gxf3
{[%clk 0:02:12.7]} 22... Kf7 {[%clk 0:02:11.5]} 23. b4 {[%clk 0:02:03.7]} 23...
Bf8 {[%clk 0:01:53.4]} 24. Bg5 {[%clk 0:02:00.5]} 24... Rd7 {[%clk 0:01:42.6]}
25. a3 {[%clk 0:01:56.2]} 25... b5 {[%clk 0:01:38.4]} 26. Kb2 {[%clk 0:01:45.3]}
26... Rd1 {[%clk 0:01:25.8]} 27. Kb3 {[%clk 0:01:35.7]} 27... Rb1+ {[%clk
0:01:24.4]} 28. Ka2 {[%clk 0:01:36]} 28... Rh1 {[%clk 0:01:24.7]} 29. Kb3 {[%clk
0:01:33.9]} 29... Rb1+ {[%clk 0:01:24.1]} 30. Ka2 {[%clk 0:01:34.1]} 30... Rh1
{[%clk 0:01:21.6]} 31. Kb3 {[%clk 0:01:34.3]} 31... a6 {[%clk 0:01:18.9]} 32. c4
{[%clk 0:01:30.5]} 32... Rh3 {[%clk 0:01:02.9]} 33. Re3 {[%clk 0:01:19.7]} 33...
Bxh6 {[%clk 0:01:00.8]} 34. Bxh6 {[%clk 0:00:36.9]} 34... Rxh6 {[%clk
0:01:01.7]} 35. cxb5 {[%clk 0:00:37.3]} 35... cxb5 {[%clk 0:01:02.1]} 36. c4
{[%clk 0:00:37.4]} 36... bxc4+ {[%clk 0:00:37.9]} 37. Kxc4 {[%clk 0:00:38.3]}
37... Rh2 {[%clk 0:00:38.2]} 38. Kc5 {[%clk 0:00:35.9]} 38... Rxf2 {[%clk
0:00:37.3]} 39. Kb6 {[%clk 0:00:36]} 39... f4 {[%clk 0:00:37.7]} 40. Rc3 {[%clk
0:00:33.2]} 40... h5 {[%clk 0:00:37.7]} 41. Kxa6 {[%clk 0:00:33.4]} 41... h4
{[%clk 0:00:36.1]} 42. b5 {[%clk 0:00:33.7]} 42... h3 {[%clk 0:00:36.8]} 43. b6
{[%clk 0:00:32.6]} 43... h2 {[%clk 0:00:37.3]} 44. Rc1 {[%clk 0:00:32.8]} 44...
Rxf3 {[%clk 0:00:36.6]} 45. a4 {[%clk 0:00:32.6]} 45... Rb3 {[%clk 0:00:16.9]}
46. a5 {[%clk 0:00:31.6]} 46... f3 {[%clk 0:00:13.5]} 47. Kb7 {[%clk 0:00:19.1]}
47... f2 {[%clk 0:00:03.4]} 48. a6 {[%clk 0:00:19.3]} 48... Rg3 {[%clk
0:00:02.4]} 49. a7 {[%clk 0:00:12.6]} 49... Rg1 {[%clk 0:00:02.7]} 50. Rc7+
{[%clk 0:00:12.8]} 50... Kf6 {[%clk 0:00:02.4]} 51. Rc6+ {[%clk 0:00:12.6]}
51... Kg5 {[%clk 0:00:02.1]} 52. a8=Q {[%clk 0:00:13.1]} 52... h1=Q {[%clk
0:00:01.1]} 53. Qd8+ {[%clk 0:00:13.3]} 1-0